fUSD/lending_fUSD_20260611
["ID","MTS","AMOUNT","RATE_DAILY","PERIOD"]
[424817162,1781181041000,-296.60307495,9.096e-05,2]
[424817214,1781181041000,-296.60307495,9.258e-05,2]
[424817209,1781181041000,-2000.0,9.247e-05,2]
[424817265,1781181041000,-150.0,9.421e-05,2]
[424817243,1781181041000,-150.0,9.351e-05,2]
[424817247,1781181041000,-296.60307495,9.359e-05,2]
[424817246,1781181041000,-150.0,9.359e-05,2]
[424817249,1781181041000,-296.60307495,9.369e-05,2]
[424817248,1781181041000,-150.0,9.366e-05,2]
[424817250,1781181041000,-150.0,9.374e-05,2]
[424817245,1781181041000,-150.0,9.359e-05,2]
[424817251,1781181041000,-150.0,9.376e-05,2]
[424817241,1781181041000,-296.60307495,9.349e-05,2]
[424817252,1781181041000,-150.0,9.376e-05,2]
[424817253,1781181041000,-296.60307495,9.379e-05,2]
[424817256,1781181041000,-296.60307495,9.389e-05,2]
[424817242,1781181041000,-150.0,9.351e-05,2]
[424817262,1781181041000,-296.60307495,9.41e-05,2]
[424817261,1781181041000,-150.0,9.409e-05,2]
[424817258,1781181041000,-150.0,9.398e-05,2]
[424817255,1781181041000,-150.0,9.389e-05,2]
[424817257,1781181041000,-150.0,9.394e-05,2]
[424817259,1781181041000,-296.60307495,9.399e-05,2]
[424817264,1781181041000,-296.60307495,9.42e-05,2]
[424817263,1781181041000,-150.0,9.412e-05,2]
[424817267,1781181041000,-150.0,9.429e-05,2]
[424817269,1781181041000,-150.0,9.43e-05,2]
[424817266,1781181041000,-150.0,9.426e-05,2]
[424817268,1781181041000,-296.60307495,9.43e-05,2]
[424817213,1781181041000,-150.0,9.253e-05,2]
[424817260,1781181041000,-150.0,9.401e-05,2]
[424817244,1781181041000,-150.0,9.359e-05,2]
[424817254,1781181041000,-150.0,9.387e-05,2]
[424817236,1781181041000,-150.0,9.328e-05,2]
[424817240,1781181041000,-150.0,9.345e-05,2]
[424817208,1781181041000,-150.0,9.238e-05,2]
[424817210,1781181041000,-500.0,9.247e-05,2]
[424817211,1781181041000,-296.60307495,9.247e-05,2]
[424817212,1781181041000,-150.0,9.25e-05,2]
[424817219,1781181041000,-150.0,9.275e-05,2]
[424817217,1781181041000,-296.60307495,9.268e-05,2]
[424817221,1781181041000,-150.0,9.281e-05,2]
[424817218,1781181041000,-150.0,9.271e-05,2]
[424817222,1781181041000,-150.0,9.281e-05,2]
[424817223,1781181041000,-296.60307495,9.288e-05,2]
[424817220,1781181041000,-296.60307495,9.278e-05,2]
[424817227,1781181041000,-150.0,9.3e-05,2]
[424817224,1781181041000,-150.0,9.289e-05,2]
[424817207,1781181041000,-296.60307495,9.237e-05,2]
[424817235,1781181041000,-150.0,9.325e-05,2]
[424817225,1781181041000,-150.0,9.298e-05,2]
[424817234,1781181041000,-150.0,9.324e-05,2]
[424817233,1781181041000,-150.0,9.323e-05,2]
[424817232,1781181041000,-296.60307495,9.318e-05,2]
[424817231,1781181041000,-296.60307495,9.308e-05,2]
[424817230,1781181041000,-150.0,9.306e-05,2]
[424817239,1781181041000,-150.0,9.341e-05,2]
[424817228,1781181041000,-150.0,9.302e-05,2]
[424817237,1781181041000,-296.60307495,9.329e-05,2]
[424817229,1781181041000,-150.0,9.304e-05,2]
[424817226,1781181041000,-296.60307495,9.298e-05,2]
[424817238,1781181041000,-296.60307495,9.339e-05,2]
[424817303,1781181042000,-150.0,9.526e-05,2]
[424817307,1781181042000,-150.0,9.537e-05,2]
[424817308,1781181042000,-150.0,9.538e-05,2]
[424817301,1781181042000,-296.60307495,9.521e-05,2]
[424817304,1781181042000,-150.0,9.526e-05,2]
[424817309,1781181042000,-296.60307495,9.541e-05,2]
[424817306,1781181042000,-150.0,9.535e-05,2]
[424817305,1781181042000,-296.60307495,9.531e-05,2]
[424817302,1781181042000,-150.0,9.526e-05,2]
[424817298,1781181042000,-150.0,9.515e-05,2]
[424817310,1781181042000,-150.0,9.551e-05,2]
[424817300,1781181042000,-500.0,9.521e-05,2]
[424817311,1781181042000,-296.60307495,9.551e-05,2]
[424817318,1781181042000,-296.60307495,9.572e-05,2]
[424817315,1781181042000,-296.60307495,9.561e-05,2]
[424817314,1781181042000,-150.0,9.561e-05,2]
[424817313,1781181042000,-150.0,9.558e-05,2]
[424817316,1781181042000,-150.0,9.57e-05,2]
[424817317,1781181042000,-150.0,9.572e-05,2]
[424817319,1781181042000,-150.0,9.576e-05,2]
[424817320,1781181042000,-150.0,9.579e-05,2]
[424817321,1781181042000,-296.60307495,9.582e-05,2]
[424817334,1781181042000,-150.0,9.623e-05,2]
[424817323,1781181042000,-150.0,9.588e-05,2]
[424817333,1781181042000,-296.60307495,9.622e-05,2]
[424817324,1781181042000,-162.1,9.589e-05,2]
[424817312,1781181042000,-150.0,9.552e-05,2]
[424817299,1781181042000,-150.0,9.517e-05,2]
[424817326,1781181042000,-150.0,9.601e-05,2]
[424817297,1781181042000,-150.0,9.514e-05,2]
[424817274,1781181042000,-150.0,9.451e-05,2]
[424817272,1781181042000,-150.0,9.447e-05,2]
[424817273,1781181042000,-296.60307495,9.45e-05,2]
[424817270,1781181042000,-296.60307495,9.44e-05,2]
[424817271,1781181042000,-150.0,9.444e-05,2]
[424817276,1781181042000,-296.60307495,9.46e-05,2]
[424817285,1781181042000,-296.60307495,9.491e-05,2]
[424817284,1781181042000,-150.0,9.482e-05,2]
[424817275,1781181042000,-150.0,9.451e-05,2]
[424817277,1781181042000,-150.0,9.464e-05,2]
[424817278,1781181042000,-150.0,9.468e-05,2]
[424817283,1781181042000,-296.60307495,9.48e-05,2]
[424817295,1781181042000,-150.0,9.501e-05,2]
[424817280,1781181042000,-150.0,9.473e-05,2]
[424817282,1781181042000,-150.0,9.48e-05,2]
[424817279,1781181042000,-296.60307495,9.47e-05,2]
[424817286,1781181042000,-150.0,9.491e-05,2]
[424817288,1781181042000,-151.0,9.497e-05,2]
[424817294,1781181042000,-296.60307495,9.501e-05,2]
[424817287,1781181042000,-150.0,9.494e-05,2]
[424817292,1781181042000,-150.0,9.5e-05,2]
[424817290,1781181042000,-151.0,9.497e-05,2]
[424817293,1781181042000,-5239543.14947928,9.5e-05,2]
[424817289,1781181042000,-151.0,9.497e-05,2]
[424817291,1781181042000,-151.0,9.497e-05,2]
[424817296,1781181042000,-296.60307495,9.511e-05,2]
[424817281,1781181042000,-150.0,9.476e-05,2]
[424817325,1781181042000,-296.60307495,9.592e-05,2]
[424817388,1781181042000,-150.0,9.777e-05,2]
[424817331,1781181042000,-296.60307495,9.612e-05,2]
[424817364,1781181042000,-581.96798662,9.714e-05,2]
[424817369,1781181042000,-150.0,9.727e-05,2]
[424817361,1781181042000,-150.0,9.707e-05,2]
[424817365,1781181042000,-460.92,9.723e-05,2]
[424817360,1781181042000,-296.60307495,9.703e-05,2]
[424817371,1781181042000,-150.0,9.728e-05,2]
[424817367,1781181042000,-150.0,9.724e-05,2]
[424817359,1781181042000,-150.0,9.702e-05,2]
[424817363,1781181042000,-296.60307495,9.713e-05,2]
[424817366,1781181042000,-296.60307495,9.724e-05,2]
[424817373,1781181042000,-296.60307495,9.734e-05,2]
[424817384,1781181042000,-296.60307495,9.764e-05,2]
[424817362,1781181042000,-150.0,9.711e-05,2]
[424817375,1781181042000,-150.0,9.746e-05,2]
[424817374,1781181042000,-296.60307495,9.744e-05,2]
[424817380,1781181042000,-150.0,9.752e-05,2]
[424817377,1781181042000,-150.0,9.748e-05,2]
[424817379,1781181042000,-150.0,9.75e-05,2]
[424817382,1781181042000,-296.60307495,9.754e-05,2]
[424817381,1781181042000,-150.0,9.754e-05,2]
[424817386,1781181042000,-150.0,9.771e-05,2]
[424817389,1781181042000,-150.0,9.781e-05,2]
[424817385,1781181042000,-150.0,9.771e-05,2]
[424817387,1781181042000,-296.60307495,9.774e-05,2]
[424817390,1781181042000,-296.60307495,9.784e-05,2]
[424817322,1781181042000,-150.0,9.584e-05,2]
[424817372,1781181042000,-150.0,9.729e-05,2]
[424817358,1781181042000,-150.0,9.701e-05,2]
[424817383,1781181042000,-150.0,9.764e-05,2]
[424817353,1781181042000,-150.0,9.686e-05,2]
[424817351,1781181042000,-150.0,9.678e-05,2]
[424817327,1781181042000,-150.0,9.601e-05,2]
[424817329,1781181042000,-150.0,9.605e-05,2]
[424817330,1781181042000,-150.0,9.608e-05,2]
[424817332,1781181042000,-150.0,9.622e-05,2]
[424817335,1781181042000,-150.0,9.626e-05,2]
[424817337,1781181042000,-296.60307495,9.632e-05,2]
[424817340,1781181042000,-150.0,9.643e-05,2]
[424817339,1781181042000,-296.60307495,9.643e-05,2]
[424817343,1781181042000,-150.0,9.654e-05,2]
[424817338,1781181042000,-150.0,9.64e-05,2]
[424817341,1781181042000,-150.0,9.651e-05,2]
[424817345,1781181042000,-150.0,9.663e-05,2]
[424817328,1781181042000,-296.60307495,9.602e-05,2]
[424817354,1781181042000,-150.0,9.693e-05,2]
[424817352,1781181042000,-296.60307495,9.683e-05,2]
[424817350,1781181042000,-150.0,9.676e-05,2]
[424817355,1781181042000,-150.0,9.693e-05,2]
[424817342,1781181042000,-296.60307495,9.653e-05,2]
[424817348,1781181042000,-296.60307495,9.673e-05,2]
[424817357,1781181042000,-296.60307495,9.693e-05,2]
[424817356,1781181042000,-150.0,9.693e-05,2]
[424817347,1781181042000,-150.0,9.665e-05,2]
[424817346,1781181042000,-296.60307495,9.663e-05,2]
[424817336,1781181042000,-150.0,9.631e-05,2]
[424817344,1781181042000,-150.0,9.658e-05,2]
[424817349,1781181042000,-150.0,9.676e-05,2]
[424817436,1781181043000,-296.60307495,9.906e-05,2]
[424817437,1781181043000,-150.0,9.911e-05,2]
[424817435,1781181043000,-150.0,9.904e-05,2]
[424817429,1781181043000,-150.0,9.887e-05,2]
[424817431,1781181043000,-296.60307495,9.896e-05,2]
[424817427,1781181043000,-150.0,9.878e-05,2]
[424817433,1781181043000,-150.0,9.902e-05,2]
[424817432,1781181043000,-150.0,9.899e-05,2]
[424817434,1781181043000,-1146.2222011,9.904e-05,2]
[424817430,1781181043000,-150.0,9.887e-05,2]
[424817439,1781181043000,-150.0,9.921e-05,2]
[424817428,1781181043000,-296.60307495,9.886e-05,2]
[424817438,1781181043000,-296.60307495,9.916e-05,2]
[424817441,1781181043000,-296.60307495,9.926e-05,2]
[424817448,1781181043000,-433.0,9.944e-05,2]
[424817443,1781181043000,-150.0,9.934e-05,2]
[424817440,1781181043000,-150.0,9.922e-05,2]
[424817444,1781181043000,-150.0,9.936e-05,2]
[424817446,1781181043000,-150.0,9.939e-05,2]
[424817449,1781181043000,-296.60307495,9.946e-05,2]
[424817450,1781181043000,-150.0,9.952e-05,2]
[424817445,1781181043000,-296.60307495,9.936e-05,2]
[424817447,1781181043000,-150.0,9.942e-05,2]
[424817452,1781181043000,-150.0,9.957e-05,2]
[424817462,1781181043000,-150.0,9.992e-05,2]
[424817463,1781181043000,-296.60307495,9.997e-05,2]
[424817451,1781181043000,-296.60307495,9.956e-05,2]
[424817442,1781181043000,-150.0,9.927e-05,2]
[424817426,1781181043000,-150.0,9.877e-05,2]
[424817396,1781181043000,-150.0,9.799e-05,2]
[424817423,1781181043000,-296.60307495,9.865e-05,2]
[424817457,1781181043000,-296.60307495,9.977e-05,2]
[424817397,1781181043000,-150.0,9.802e-05,2]
[424817394,1781181043000,-296.60307495,9.794e-05,2]
[424817395,1781181043000,-500.0,9.795e-05,2]
[424817391,1781181043000,-150.0,9.793e-05,2]
[424817393,1781181043000,-150.0,9.794e-05,2]
[424817410,1781181043000,-150.0,9.841e-05,2]
[424817399,1781181043000,-166.09,9.812e-05,2]
[424817398,1781181043000,-296.60307495,9.805e-05,2]
[424817402,1781181043000,-150.0,9.816e-05,2]
[424817400,1781181043000,-150.0,9.814e-05,2]
[424817401,1781181043000,-296.60307495,9.815e-05,2]
[424817403,1781181043000,-150.0,9.818e-05,2]
[424817404,1781181043000,-296.60307495,9.825e-05,2]
[424817405,1781181043000,-150.0,9.827e-05,2]
[424817406,1781181043000,-150.0,9.834e-05,2]
[424817407,1781181043000,-296.60307495,9.835e-05,2]
[424817408,1781181043000,-150.0,9.835e-05,2]
[424817411,1781181043000,-150.0,9.845e-05,2]
[424817414,1781181043000,-296.60307495,9.845e-05,2]
[424817416,1781181043000,-150.0,9.851e-05,2]
[424817421,1781181043000,-150.0,9.86e-05,2]
[424817419,1781181043000,-296.60307495,9.855e-05,2]
[424817418,1781181043000,-150.0,9.852e-05,2]
[424817420,1781181043000,-150.0,9.857e-05,2]
[424817424,1781181043000,-150.0,9.869e-05,2]
[424817425,1781181043000,-296.60307495,9.875e-05,2]
[424817422,1781181043000,-150.0,9.864e-05,2]
[424817455,1781181043000,-296.60307495,9.967e-05,2]
[424817514,1781181043000,-208.11144819,0.00010027,2]
[424817454,1781181043000,-150.0,9.963e-05,2]
[424817490,1781181043000,-300.0,9.999e-05,2]
[424817492,1781181043000,-500.0,9.999e-05,2]
[424817497,1781181043000,-448.1273524,9.999e-05,2]
[424817496,1781181043000,-500.0,9.999e-05,2]
[424817494,1781181043000,-468.65335778,9.999e-05,2]
[424817493,1781181043000,-500.0,9.999e-05,2]
[424817495,1781181043000,-500.0,9.999e-05,2]
[424817498,1781181043000,-1199.27823509,0.0001,2]
[424817499,1781181043000,-1199.27823509,0.0001,2]
[424817491,1781181043000,-300.0,9.999e-05,2]
[424817500,1781181043000,-1199.27823509,0.0001,2]
[424817501,1781181043000,-163.65,0.0001,2]
[424817502,1781181043000,-249.95628502,0.0001,2]
[424817504,1781181043000,-150.0,0.00010004,2]
[424817503,1781181043000,-150.0,0.00010002,2]
[424817505,1781181043000,-150.0,0.00010006,2]
[424817512,1781181043000,-279.86118902,0.00010027,2]
[424817507,1781181043000,-150.0,0.0001001,2]
[424817506,1781181043000,-296.60307495,0.00010007,2]
[424817509,1781181043000,-4000.0,0.00010027,2]
[424817511,1781181043000,-257.36274763,0.00010027,2]
[424817508,1781181043000,-296.60307495,0.00010017,2]
[424817510,1781181043000,-248.12091067,0.00010027,2]
[424817516,1781181043000,-210.0975545,0.00010027,2]
[424817515,1781181043000,-285.87761885,0.00010027,2]
[424817513,1781181043000,-225.43309031,0.00010027,2]
[424817517,1781181043000,-289.90717118,0.00010027,2]
[424817486,1781181043000,-600.0,9.999e-05,2]
[424817487,1781181043000,-250.0,9.999e-05,2]
[424817461,1781181043000,-296.60307495,9.987e-05,2]
[424817484,1781181043000,-555.63048894,9.999e-05,2]
[424817456,1781181043000,-150.0,9.975e-05,2]
[424817459,1781181043000,-150.0,9.981e-05,2]
[424817453,1781181043000,-150.0,9.957e-05,2]
[424817460,1781181043000,-150.0,9.985e-05,2]
[424817458,1781181043000,-150.0,9.977e-05,2]
[424817464,1781181043000,-245.62109693,9.999e-05,2]
[424817466,1781181043000,-313.05158776,9.999e-05,2]
[424817483,1781181043000,-500.0,9.999e-05,2]
[424817465,1781181043000,-500.0,9.999e-05,2]
[424817468,1781181043000,-500.0,9.999e-05,2]
[424817474,1781181043000,-500.0,9.999e-05,2]
[424817476,1781181043000,-500.0,9.999e-05,2]
[424817471,1781181043000,-500.0,9.999e-05,2]
[424817467,1781181043000,-278.90885048,9.999e-05,2]
[424817473,1781181043000,-500.0,9.999e-05,2]
[424817475,1781181043000,-500.0,9.999e-05,2]
[424817479,1781181043000,-500.0,9.999e-05,2]
[424817481,1781181043000,-500.0,9.999e-05,2]
[424817482,1781181043000,-500.0,9.999e-05,2]
[424817480,1781181043000,-500.0,9.999e-05,2]
[424817477,1781181043000,-500.0,9.999e-05,2]
[424817485,1781181043000,-500.0,9.999e-05,2]
[424817489,1781181043000,-300.0,9.999e-05,2]
[424817478,1781181043000,-500.0,9.999e-05,2]
[424817469,1781181043000,-173.71490157,9.999e-05,2]
[424817472,1781181043000,-500.0,9.999e-05,2]
[424817470,1781181043000,-500.0,9.999e-05,2]
[424817488,1781181043000,-500.0,9.999e-05,2]
[424817564,1781181044000,-1146.2222011,0.00010603,2]
[424817562,1781181044000,-1146.2222011,0.0001057,2]
[424817565,1781181044000,-500.0,0.00010617,2]
[424817563,1781181044000,-1146.2222011,0.00010586,2]
[424817560,1781181044000,-1146.2222011,0.00010536,2]
[424817558,1781181044000,-1146.2222011,0.00010518,2]
[424817559,1781181044000,-4000.0,0.00010529,2]
[424817557,1781181044000,-136624.18659812,0.00010514,2]
[424817556,1781181044000,-162.1,0.00010502,2]
[424817555,1781181044000,-1146.2222011,0.000105,2]
[424817561,1781181044000,-1146.2222011,0.00010553,2]
[424817577,1781181044000,-1146.2222011,0.00010733,2]
[424817585,1781181044000,-1146.2222011,0.00010822,2]
[424817566,1781181044000,-1146.2222011,0.00010618,2]
[424817576,1781181044000,-1146.2222011,0.0001072,2]
[424817572,1781181044000,-1146.2222011,0.00010678,2]
[424817570,1781181044000,-343.99930281,0.00010672,2]
[424817571,1781181044000,-411.68099773,0.00010672,2]
[424817573,1781181044000,-1146.2222011,0.00010692,2]
[424817568,1781181044000,-1146.2222011,0.00010649,2]
[424817569,1781181044000,-1146.2222011,0.00010663,2]
[424817574,1781181044000,-460.92,0.00010695,2]
[424817575,1781181044000,-1146.2222011,0.00010706,2]
[424817579,1781181044000,-1146.2222011,0.0001076,2]
[424817578,1781181044000,-1146.2222011,0.00010746,2]
[424817554,1781181044000,-1146.2222011,0.00010481,2]
[424817567,1781181044000,-1146.2222011,0.00010634,2]
[424817547,1781181044000,-1146.2222011,0.00010375,2]
[424817534,1781181044000,-146190.74865057,0.000103,2]
[424817546,1781181044000,-1146.2222011,0.00010351,2]
[424817589,1781181044000,-1146.2222011,0.00010869,2]
[424817525,1781181044000,-1146.2222011,0.00010202,2]
[424817522,1781181044000,-500.0,0.00010069,2]
[424817519,1781181044000,-162.1,0.00010046,2]
[424817520,1781181044000,-1146.2222011,0.00010053,2]
[424817523,1781181044000,-1146.2222011,0.00010115,2]
[424817521,1781181044000,-1139.08,0.00010065,2]
[424817518,1781181044000,-296.60307495,0.00010027,2]
[424817526,1781181044000,-1146.2222011,0.00010237,2]
[424817527,1781181044000,-300.99938996,0.00010258,2]
[424817529,1781181044000,-2000.0,0.00010274,2]
[424817530,1781181044000,-4000.0,0.00010278,2]
[424817533,1781181044000,-1363.1444605,0.00010299,2]
[424817532,1781181044000,-3617.95336212,0.00010299,2]
[424817528,1781181044000,-1146.2222011,0.00010269,2]
[424817531,1781181044000,-1146.2222011,0.00010298,2]
[424817536,1781181044000,-841.090905,0.00010304,2]
[424817535,1781181044000,-69774.0,0.000103,2]
[424817549,1781181044000,-215.95576085,0.00010406,2]
[424817548,1781181044000,-1146.2222011,0.00010398,2]
[424817552,1781181044000,-1146.2222011,0.00010441,2]
[424817551,1781181044000,-166.09,0.00010425,2]
[424817537,1781181044000,-860.684646,0.00010304,2]
[424817553,1781181044000,-1146.2222011,0.00010461,2]
[424817550,1781181044000,-1146.2222011,0.0001042,2]
[424817539,1781181044000,-1146.736743,0.00010304,2]
[424817544,1781181044000,-500.0,0.00010343,2]
[424817542,1781181044000,-1146.2222011,0.00010325,2]
[424817524,1781181044000,-1146.2222011,0.00010162,2]
[424817583,1781181044000,-1146.2222011,0.00010798,2]
[424817581,1781181044000,-4000.0,0.00010779,2]
[424817617,1781181044000,-500.0,0.00010958,2]
[424817625,1781181044000,-500.0,0.00010958,2]
[424817627,1781181044000,-500.0,0.00010958,2]
[424817626,1781181044000,-500.0,0.00010958,2]
[424817616,1781181044000,-500.0,0.00010958,2]
[424817619,1781181044000,-500.0,0.00010958,2]
[424817620,1781181044000,-500.0,0.00010958,2]
[424817618,1781181044000,-500.0,0.00010958,2]
[424817623,1781181044000,-500.0,0.00010958,2]
[424817621,1781181044000,-500.0,0.00010958,2]
[424817622,1781181044000,-500.0,0.00010958,2]
[424817628,1781181044000,-500.0,0.00010958,2]
[424817630,1781181044000,-500.0,0.00010958,2]
[424817632,1781181044000,-500.0,0.00010958,2]
[424817629,1781181044000,-500.0,0.00010958,2]
[424817631,1781181044000,-500.0,0.00010958,2]
[424817633,1781181044000,-500.0,0.00010958,2]
[424817637,1781181044000,-500.0,0.00010958,2]
[424817635,1781181044000,-500.0,0.00010958,2]
[424817636,1781181044000,-500.0,0.00010958,2]
[424817638,1781181044000,-500.0,0.00010958,2]
[424817634,1781181044000,-500.0,0.00010958,2]
[424817639,1781181044000,-500.0,0.00010958,2]
[424817641,1781181044000,-500.0,0.00010958,2]
[424817640,1781181044000,-500.0,0.00010958,2]
[424817642,1781181044000,-500.0,0.00010958,2]
[424817588,1781181044000,-1146.2222011,0.00010858,2]
[424817608,1781181044000,-500.0,0.00010958,2]
[424817615,1781181044000,-500.0,0.00010958,2]
[424817624,1781181044000,-500.0,0.00010958,2]
[424817605,1781181044000,-1146.22220094,0.00010947,2]
[424817612,1781181044000,-500.0,0.00010958,2]
[424817580,1781181044000,-1146.2222011,0.00010772,2]
[424817586,1781181044000,-1146.2222011,0.00010834,2]
[424817590,1781181044000,-1146.2222011,0.00010881,2]
[424817587,1781181044000,-1146.2222011,0.00010846,2]
[424817582,1781181044000,-1146.2222011,0.00010785,2]
[424817592,1781181044000,-1146.2222011,0.00010892,2]
[424817591,1781181044000,-500.0,0.00010891,2]
[424817601,1781181044000,-1146.2222011,0.00010914,2]
[424817599,1781181044000,-22084.62197204,0.000109,2]
[424817602,1781181044000,-1146.2222011,0.00010925,2]
[424817596,1781181044000,-22084.62197204,0.000109,2]
[424817594,1781181044000,-1000.0,0.000109,3]
[424817593,1781181044000,-255.64637954,0.00010899,2]
[424817584,1781181044000,-1146.2222011,0.0001081,2]
[424817600,1781181044000,-1146.2222011,0.00010903,2]
[424817598,1781181044000,-22084.62197204,0.000109,2]
[424817614,1781181044000,-500.0,0.00010958,2]
[424817609,1781181044000,-500.0,0.00010958,2]
[424817610,1781181044000,-500.0,0.00010958,2]
[424817607,1781181044000,-500.0,0.00010958,2]
[424817613,1781181044000,-500.0,0.00010958,2]
[424817606,1781181044000,-500.0,0.00010958,2]
[424817611,1781181044000,-500.0,0.00010958,2]
[424817603,1781181044000,-1146.2222011,0.00010936,2]
[424817597,1781181044000,-4175.83591919,0.000109,2]
[424817595,1781181044000,-22084.62197206,0.000109,2]
[424817604,1781181044000,-736.0,0.00010938,2]
[424817682,1781181045000,-151.0,0.00011099,2]
[424817680,1781181045000,-88190.7663667,0.00011099,2]
[424817681,1781181045000,-151.0,0.00011099,2]
[424817669,1781181045000,-15886.23871763,0.00011099,2]
[424817683,1781181045000,-151.0,0.00011099,2]
[424817677,1781181045000,-88190.7663667,0.00011099,2]
[424817679,1781181045000,-88190.7663667,0.00011099,2]
[424817685,1781181045000,-1367.898845,0.00011099,2]
[424817678,1781181045000,-88190.7663667,0.00011099,2]
[424817676,1781181045000,-88190.7663667,0.00011099,2]
[424817684,1781181045000,-151.0,0.00011099,2]
[424817686,1781181045000,-1367.898845,0.00011099,2]
[424817699,1781181045000,-166.66,0.00011507,2]
[424817691,1781181045000,-500.0,0.00011165,2]
[424817688,1781181045000,-1367.898845,0.00011099,2]
[424817689,1781181045000,-151.0,0.00011099,2]
[424817702,1781181045000,-1912.36125618,0.0001165,2]
[424817687,1781181045000,-1367.898845,0.00011099,2]
[424817692,1781181045000,-166.66,0.00011178,2]
[424817693,1781181045000,-166.66,0.00011288,2]
[424817694,1781181045000,-2000.0,0.00011301,2]
[424817695,1781181045000,-22084.62197204,0.0001137,2]
[424817697,1781181045000,-162.1,0.00011416,2]
[424817696,1781181045000,-166.66,0.00011397,2]
[424817700,1781181045000,-3710.26,0.00011507,2]
[424817667,1781181045000,-151.0,0.00011096,2]
[424817698,1781181045000,-500.0,0.00011439,2]
[424817671,1781181045000,-88190.76636675,0.00011099,2]
[424817649,1781181045000,-500.0,0.00010958,2]
[424817672,1781181045000,-88190.7663667,0.00011099,2]
[424817650,1781181045000,-500.0,0.00010958,2]
[424817651,1781181045000,-500.0,0.00010958,2]
[424817652,1781181045000,-500.0,0.00010958,2]
[424817643,1781181045000,-500.0,0.00010958,2]
[424817645,1781181045000,-500.0,0.00010958,2]
[424817646,1781181045000,-500.0,0.00010958,2]
[424817644,1781181045000,-500.0,0.00010958,2]
[424817647,1781181045000,-500.0,0.00010958,2]
[424817648,1781181045000,-500.0,0.00010958,2]
[424817657,1781181045000,-166.66,0.00010959,2]
[424817658,1781181045000,-2123.92,0.00010959,2]
[424817663,1781181045000,-4000.0,0.0001103,2]
[424817655,1781181045000,-150.0,0.00010959,2]
[424817656,1781181045000,-186.7,0.00010959,2]
[424817661,1781181045000,-1139.2058849,0.00011,2]
[424817654,1781181045000,-150.0,0.00010959,2]
[424817653,1781181045000,-500.0,0.00010958,2]
[424817660,1781181045000,-150.0,0.00010989,2]
[424817662,1781181045000,-5530.0,0.00011,3]
[424817659,1781181045000,-162.1,0.00010959,2]
[424817665,1781181045000,-166.66,0.00011068,2]
[424817664,1781181045000,-166.09,0.00011038,2]
[424817668,1781181045000,-15886.23871772,0.00011099,2]
[424817666,1781181045000,-1139.08,0.00011072,2]
[424817675,1781181045000,-88190.7663667,0.00011099,2]
[424817670,1781181045000,-15886.23871763,0.00011099,2]
[424817673,1781181045000,-88190.7663667,0.00011099,2]
[424817674,1781181045000,-88190.7663667,0.00011099,2]
[424817701,1781181045000,-5530.0,0.000116,5]
[424817690,1781181045000,-151.0,0.00011099,2]
[424817711,1781181045000,-150.1872639,0.00012,2]
[424817747,1781181045000,-151.0,0.00013631,2]
[424817737,1781181045000,-2129.0,0.00013239,2]
[424817748,1781181045000,-166.66,0.00013684,2]
[424817736,1781181045000,-500.0,0.00013082,2]
[424817749,1781181045000,-500.0,0.00013698,2]
[424817740,1781181045000,-1000.0,0.000135,2]
[424817738,1781181045000,-500.0,0.00013356,2]
[424817751,1781181045000,-503.31933434,0.00013698,2]
[424817750,1781181045000,-500.0,0.00013698,2]
[424817742,1781181045000,-1500.0,0.00013594,2]
[424817744,1781181045000,-22084.62197204,0.00013598,2]
[424817745,1781181045000,-500.0,0.0001363,2]
[424817746,1781181045000,-39235.93677286,0.00013631,2]
[424817752,1781181045000,-500.0,0.00013698,2]
[424817754,1781181045000,-500.0,0.00013698,2]
[424817755,1781181045000,-500.0,0.00013698,2]
[424817759,1781181045000,-500.0,0.00013698,2]
[424817753,1781181045000,-500.0,0.00013698,2]
[424817760,1781181045000,-362.50237529,0.00013698,2]